[Event "Sautron op 15th"]
[Site "Sautron"]
[Date "2015.10.24"]
[Round "4.3"]
[White "Le Roux, Jean Pierre"]
[Black "Stets, Dmitry"]
[Result "1-0"]
[ECO "D03"]
[WhiteElo "2572"]
[BlackElo "2432"]
[Annotator "RR"]
[PlyCount "97"]
[EventDate "2015.10.24"]
[EventType "swiss"]
[EventRounds "9"]
[EventCountry "FRA"]
[SourceTitle "CBM 169 Extra"]
[Source "ChessBase"]
[SourceDate "2015.12.18"]
[SourceVersion "1"]
[SourceVersionDate "2015.12.18"]
[SourceQuality "1"]
[TimeControl "40/5400+30:1800+30"]
[WhiteClock "0:15:54"]
[BlackClock "0:18:37"]

1. d4 {[%emt 0:01:33]} Nf6 {[%emt 0:00:00]} 2. Nf3 {[%emt 0:00:23]} g6 {
[%emt 0:00:00]} 3. Bg5 {[%emt 0:00:52]} Bg7 {[%emt 0:00:26]} 4. c3 {[%emt 0:00:
05]} b6 {[%emt 0:05:55]} (4... O-O) (4... d6) 5. Nbd2 {[%emt 0:09:13]} Bb7 {
[%emt 0:01:29]} 6. e3 {[%emt 0:05:12]} O-O {[%emt 0:04:12]} 7. Bd3 {[%emt 0:04:
06]} d5 {[%emt 0:01:58]} 8. O-O {[%emt 0:03:51]} (8. Qb1 $5) 8... Ne4 {[%emt 0:
03:33]} (8... c5) (8... Nbd7) 9. Bh4 {[%emt 0:03:04]} Nd7 {[%emt 0:05:10]} 10.
a4 {[%emt 0:06:15]} (10. Qc2 Ndf6 11. Ne5 c5 12. Nxe4 Nxe4 13. Bxe4 dxe4 14.
Rad1 Bxe5 15. dxe5 Qc7 16. Bg3 Qc6 17. Rd2 Rad8 18. Rfd1 Rd3 19. Bh4 f6 20.
exf6 exf6 21. c4 h5 22. Bg3 Rfd8 23. h3 Kg7 24. b3 g5 25. h4 Kg6 26. Qb2 Qd7
27. Rxd3 exd3 28. f3 g4 29. e4 Kf7 30. Kh2 gxf3 31. gxf3 Rg8 32. Qf2 Bc8 33.
Qf1 d2 34. Bf4 Qd4 35. Rxd2 Qc3 36. Qd1 Re8 37. Rc2 Rd8 38. Qxd8 Qxc2+ 39. Kg3
Qb1 {Radjabov,T (2751)-Polgar,J (2711) Almaty 2008 1-0}) 10... a6 $146 {
[%emt 0:04:35]} ({Prédécesseur (5):} 10... Qe8 11. a5 h6 12. Qc2 Nxd2 13. Qxd2
Nf6 14. a6 Bc8 15. c4 dxc4 16. Bxc4 c6 17. Qc2 Bf5 18. Bd3 Be6 19. Rac1 Rc8 20.
b4 Nd7 21. Qe2 b5 22. Nd2 f5 23. e4 f4 24. d5 cxd5 25. Rxc8 Qxc8 26. Bxe7 Re8
27. Bd6 dxe4 28. Qxe4 Nf6 29. Qxg6 Bf7 30. Qf5 Qxf5 31. Bxf5 Rd8 32. Bxf4 Nd5
33. Bg3 Nxb4 34. Ne4 Nxa6 35. Nd6 b4 36. Nxf7 Kxf7 37. Re1 Bc3 38. Be6+ Kg6 39.
Rc1 Nc5 40. Ba2 {Illescas Cordoba,M (2590)-Polgar,J (2630) Las Palmas 1994 0-1
(85)}) (10... a5) 11. a5 {[%emt 0:05:01] Comme les Noirs n'ont pas poussé le
P"c5", ce plan a4a5 ne parait pas très dangereux} b5 $132 {[%emt 0:01:25]} 12.
Re1 {[%emt 0:21:17]} (12. Qc2) 12... h6 {[%emt 0:06:16]} 13. Qc2 {[%emt 0:02:
31]} f5 {[%emt 0:03:09]} 14. Bg3 $5 {[%emt 0:10:23]} Nxg3 {[%emt 0:04:40]} 15.
hxg3 {[%emt 0:00:04]} e5 {[%emt 0:00:15]} 16. dxe5 {[%emt 0:01:25]} Qe7 $11 {
[%emt 0:02:20]} 17. b3 {[%emt 0:04:33]} c5 {[%emt 0:02:34] Il fallait
peut-être laisser cette case accessible pour la Qe7} (17... Nxe5 $5 {Plus
souple} 18. Nxe5 Bxe5 19. Nf3 Bg7) 18. c4 $1 {[%emt 0:02:55]} dxc4 {[%emt 0:00:
45]} 19. bxc4 {[%emt 0:00:05]} b4 {[%emt 0:01:04] Le P passé n'est pas
dangereux et l'aile-dame des Noirs s'est affaiblie} 20. Rad1 {[%emt 0:04:10]}
Nxe5 {[%emt 0:01:14]} 21. Nxe5 {[%emt 0:00:50]} Bxe5 {[%emt 0:00:58]} 22. f4 {
[%emt 0:01:37]} Bc3 {[%emt 0:01:20]} 23. e4 $1 $36 {[%emt 0:00:41][%csl Re7]}
Qf7 {[%emt 0:09:59]} 24. Re2 {[%emt 0:05:52]} Rad8 {[%emt 0:02:21]} 25. Nf3 $16
{[%emt 0:02:10]} g5 $6 {[%emt 0:16:32]} 26. exf5 {[%emt 0:01:01]} Bxf3 {
[%emt 0:00:35]} 27. gxf3 {[%emt 0:00:05]} gxf4 {[%emt 0:01:39]} 28. Re6 $1 {
[%emt 0:00:18][%csl Rg8][%cal Ge6g6]} Bf6 {[%emt 0:05:44]} 29. g4 {[%emt 0:00:
24]} Qd7 {[%emt 0:03:44]} 30. Kg2 $1 {[%emt 0:01:17]} Qd4 {[%emt 0:01:08]} 31.
Rxa6 {[%emt 0:00:57][%csl Ga5]} Rb8 {[%emt 0:06:49]} 32. Rb6 $1 {[%emt 0:02:34]
} Rxb6 {[%emt 0:02:22]} 33. axb6 {[%emt 0:00:02]} Qd6 {[%emt 0:00:05]} 34. b7 {
[%emt 0:00:33]} Qb6 {[%emt 0:00:07]} 35. Be4 $40 {[%emt 0:00:27][%csl Gb7,Ge4]}
b3 {[%emt 0:00:33] Le P "b3" est moins dangereux que le P "b7" à cause de la
position des B} 36. Qd2 {[%emt 0:01:24]} Qc7 {[%emt 0:01:59]} 37. Rb1 {[%emt 0:
00:29]} b2 {[%emt 0:00:48]} 38. Rxb2 $1 {[%emt 0:00:43]} Bxb2 {[%emt 0:00:05]}
39. Qxb2 {[%emt 0:00:03]} Qd6 $2 {[%emt 0:00:51]} 40. Bd5+ {[%emt 0:00:00]} Kh7
{[%emt 0:00:00]} 41. Qe2 {[%emt 0:01:28]} Qf6 {[%emt 0:04:37]} 42. Qe4 {
[%emt 0:05:08]} h5 {[%emt 0:06:43]} 43. Qxf4 {[%emt 0:02:22][%csl Rh7][%cal
Gg4g5,Gd5e4]} Qb2+ {[%emt 0:00:06]} 44. Kh3 $18 {[%emt 0:05:14]} hxg4+ {
[%emt 0:00:30]} 45. fxg4 {[%emt 0:01:55]} Rh8 {[%emt 0:00:58] Une dernière
tentative} 46. Kg3 {[%emt 0:02:34]} Qc3+ {[%emt 0:00:13]} 47. Bf3 {[%emt 0:00:
44]} Qe1+ {[%emt 0:03:21]} 48. Kg2 {[%emt 0:00:07]} Kg7 {[%emt 0:00:16]} 49.
Qg5+ {[%emt 0:00:39]} 1-0

[Event "Sautron op 14th"]
[Site "Sautron"]
[Date "2014.10.25"]
[Round "6"]
[White "Koziak, Vitali"]
[Black "Lagarde, Maxime"]
[Result "1/2-1/2"]
[ECO "D03"]
[WhiteElo "2456"]
[BlackElo "2566"]
[Annotator "RR"]
[PlyCount "82"]
[EventDate "2014.10.26"]
[EventType "swiss"]
[EventRounds "9"]
[EventCountry "FRA"]
[SourceTitle "EXT 2015"]
[Source "ChessBase"]
[SourceDate "2014.11.20"]
[SourceVersion "1"]
[SourceVersionDate "2014.11.20"]
[SourceQuality "1"]
[TimeControl "40/5400+30:1800+30"]
[WhiteClock "0:30:03"]
[BlackClock "0:50:41"]

1. Nf3 {[%emt 0:00:00]} c5 {[%emt 0:00:00]} 2. c3 {[%emt 0:00:00]} Nf6 {
[%emt 0:04:16]} 3. d4 {[%emt 0:00:12]} e6 {[%emt 0:00:13]} 4. Bg5 {[%emt 0:01:
32]} Qb6 {[%emt 0:02:29]} 5. Qb3 {[%emt 0:02:13]} d5 {[%emt 0:06:10]} 6. e3 {
[%emt 0:01:37]} Nc6 {[%emt 0:02:27]} 7. Nbd2 {[%emt 0:01:18]} Bd6 {[%emt 0:02:
11]} (7... Be7 8. Be2 O-O 9. O-O Bd7 10. Qxb6 axb6 11. Ne5 Rfd8 12. f4 h6 13.
Bh4 c4 14. a3 b5 15. Bxf6 gxf6 16. Nxd7 Rxd7 17. e4 dxe4 18. Nxe4 f5 19. Ng3
Bf6 20. Rfd1 Ne7 21. Nh5 Bh8 22. Bf3 Rad8 23. Re1 Kf8 24. h3 Nd5 25. Kh2 Ne7
26. g4 fxg4 27. hxg4 Nd5 28. Bxd5 Rxd5 29. Kg3 Ke7 30. f5 Kd7 31. Nf4 Rd6 32.
fxe6+ fxe6 33. Re4 Re8 34. Rae1 Bf6 35. Ng6 Bg5 36. Ne5+ Ke7 37. Rf1 {
Moradiabadi,E (2586)-Efimenko,Z (2648) Dubai 2014 1-0}) (7... Bd7) 8. Be2 {
[%emt 0:06:07]} Bd7 {[%emt 0:08:21]} 9. O-O {[%emt 0:02:13]} O-O {[%emt 0:06:
27]} 10. Rad1 {[%emt 0:04:47]} cxd4 {[%emt 0:02:35]} 11. exd4 {[%emt 0:12:14]}
Qc7 {[%emt 0:01:05]} 12. Bxf6 $146 {[%emt 0:11:12]} (12. Bd3 Nh5 13. Bb1 h6 14.
Bh4 Rac8 15. Bg3 Nf4 16. Rfe1 f5 17. Ne5 Bxe5 18. dxe5 Nh5 19. f4 g5 20. Nf3
Na5 21. Qb4 Nc4 22. fxg5 a5 23. Qb3 Nxg3 24. hxg3 hxg5 25. Nxg5 Nxe5 26. Rd4
Rf6 27. Qd1 Ng4 28. Nh7 Rg6 29. Rxg4 Qc5+ 30. Kh2 Rxg4 31. Kh1 Kg7 32. b4 Qf2 {
0-1 (32) Roppel,K (2331)-Erikalov,A (2438) Novosibirsk 1999}) 12... gxf6 {
[%emt 0:00:08]} 13. c4 {[%emt 0:00:31]} dxc4 $1 {[%emt 0:05:03][%csl Rd4]} 14.
Nxc4 {[%emt 0:03:58]} Ne7 {[%emt 0:03:33]} (14... Be7 15. d5 $32 {[%csl Rc7,
Rd7,Re7,Rg8]}) 15. Nxd6 {[%emt 0:25:44]} Qxd6 {[%emt 0:00:11]} 16. Bb5 {
[%emt 0:00:58]} Rfd8 {[%emt 0:06:12]} 17. Bxd7 {[%emt 0:01:44]} Rxd7 {[%emt 0:
00:29]} 18. Rc1 {[%emt 0:01:08]} Nd5 $1 $11 {[%emt 0:03:48][%csl Gd5]} 19. Rc4
{[%emt 0:02:07]} Rc7 {[%emt 0:03:36]} 20. Rfc1 {[%emt 0:00:45]} Rac8 {[%emt 0:
00:08]} 21. g3 {[%emt 0:01:15]} Kg7 {[%emt 0:02:29]} 22. a3 {[%emt 0:01:25]}
Nb6 {[%emt 0:01:39]} 23. R4c3 {[%emt 0:04:33]} Rc6 {[%emt 0:02:49]} 24. R1c2 {
[%emt 0:02:32]} R8c7 {[%emt 0:01:59]} 25. Kg2 {[%emt 0:01:00]} Qd7 {[%emt 0:00:
45]} 26. Rc5 {[%emt 0:01:24]} Nd5 {[%emt 0:02:25]} 27. R2c4 {[%emt 0:02:37]} b6
{[%emt 0:02:31]} 28. Rxc6 {[%emt 0:00:11]} Rxc6 {[%emt 0:00:01]} 29. Qa4 $1 {
[%emt 0:01:46] Les Noirs ont réussi à faire des échanges de pièces lourdes
pour attaquer la faiblesse du P isolé mais les Blancs vont garder le
contrôle de la colonne "c" en compensation et la finale est équilibrée} Rc7
{[%emt 0:00:41]} 30. Qxd7 {[%emt 0:00:26]} Rxd7 {[%emt 0:00:04]} 31. Kf1 {
[%emt 0:00:26]} Nc7 {[%emt 0:01:34]} (31... Kf8 $5 {[%cal Gf8e7,Ge7d6,Gd7c7]})
32. Ke2 {[%emt 0:00:59]} Kf8 {[%emt 0:00:10]} 33. Ra4 {[%emt 0:03:16]} Nb5 {
[%emt 0:01:10]} 34. Rc4 {[%emt 0:00:05]} Nd6 {[%emt 0:02:02]} 35. Rc6 {[%emt 0:
01:09]} Ke7 {[%emt 0:00:41]} 36. Kd3 {[%emt 0:01:06]} Rb7 {[%emt 0:00:34]} 37.
Rc2 {[%emt 0:00:59]} f5 {[%emt 0:05:04]} (37... Kd7 {[%cal Gb7c7]}) 38. Ne5 {
[%emt 0:02:23]} f6 {[%emt 0:00:06]} 39. Nc4 {[%emt 0:00:52]} Nb5 {[%emt 0:01:
04]} 40. a4 {[%emt 0:00:00]} Nc7 {[%emt 0:00:00]} 41. Ne3 {[%emt 0:01:43]} a5 {
[%emt 0:02:39]} 1/2-1/2